bitfinex/quotes_BTCUSD_20241117
["timestamp","ask_amount","ask_price","bid_price","bid_amount"]
[1731809562628,0.005,89562.0,89548.0,0.111671]
[1731809562844,0.005,89562.0,89532.0,0.002]
[1731809563073,0.005,89562.0,89542.0,0.27879868]
[1731809563074,0.223311,89561.0,89542.0,0.27879868]
[1731809563298,0.11166,89557.0,89543.0,0.111677]
[1731809563503,0.005,89562.0,89543.0,0.223355]
[1731809563717,0.111666,89553.0,89552.0,0.005]
[1731809563936,0.005,89562.0,89545.0,0.111674]
[1731809564142,0.005,89562.0,89542.0,0.16812068]
[1731809564373,0.1274,89551.0,89544.0,0.111676]
[1731809564605,0.1274,89551.0,89550.0,0.111669]
[1731809565524,0.1274,89551.0,89543.0,0.001]
[1731809565765,0.1274,89551.0,89544.0,0.16712068]
[1731809565997,0.1274,89551.0,89550.0,0.111669]
[1731809566199,0.1274,89551.0,89550.0,0.118669]
[1731809566662,0.1274,89551.0,89550.0,0.007]
[1731809566896,0.1274,89551.0,89545.0,0.111674]
[1731809567109,0.1274,89551.0,89539.0,0.16712068]
[1731809567110,0.1414,89551.0,89550.0,0.007]
[1731809567326,0.1274,89551.0,89550.0,0.007]
[1731809567545,0.1274,89551.0,89550.0,0.123669]
[1731809567759,0.14765719,89551.0,89550.0,0.123669]
[1731809567994,0.14765719,89551.0,89550.0,0.007]
[1731809568232,0.14765719,89551.0,89550.0,0.118669]
[1731809568460,0.14765719,89551.0,89550.0,0.111669]
[1731809568658,0.1274,89551.0,89550.0,0.118669]
[1731809568907,0.12707708,89551.0,89550.0,0.007855]
[1731809569143,0.045,89551.0,89550.0,0.22858655]
[1731809569357,0.0461,89567.0,89561.0,0.111655]
[1731809569583,0.02025719,89566.0,89561.0,0.111655]
[1731809569789,0.02025719,89566.0,89554.0,0.223328]
[1731809569996,0.01735718,89567.0,89562.0,0.111653]
[1731809570207,0.01735718,89567.0,89565.0,0.11165]
[1731809570208,0.02028418,89566.0,89565.0,0.11165]
[1731809570432,0.02028418,89566.0,89554.0,0.10906255]
[1731809570433,0.03135718,89567.0,89562.0,0.223308]
[1731809570653,0.03135718,89567.0,89564.0,0.16712068]
[1731809570876,0.03135718,89567.0,89566.0,0.111649]
[1731809570877,0.01735718,89567.0,89566.0,0.111649]
[1731809571111,0.03135718,89567.0,89566.0,0.111649]
[1731809571589,0.014,89567.0,89566.0,0.22294443]
[1731809571846,0.014,89567.0,89566.0,0.22071155]
[1731809572324,0.019,89571.0,89570.0,0.111644]
[1731809572556,0.019,89571.0,89570.0,0.22070655]
[1731809572779,0.019,89571.0,89563.0,0.223306]
[1731809573038,0.111647,89568.0,89551.0,0.335004]
[1731809573246,0.0476,89570.0,89566.0,0.012]
[1731809573489,0.27876868,89567.0,89566.0,0.007]
[1731809573712,0.27876868,89567.0,89515.0,0.0228295]
[1731809573713,0.0752,89567.0,89562.0,0.111653]
[1731809573938,0.0752,89567.0,89538.0,0.16712068]
[1731809573939,0.111668,89551.0,89538.0,0.16712068]
[1731809574425,0.111668,89551.0,89542.0,0.111678]
[1731809574649,0.11656684,89551.0,89538.0,0.16712068]
[1731809575372,0.228306,89563.0,89541.0,0.22336]
[1731809575603,0.223318,89558.0,89544.0,0.111676]
[1731809575831,0.111668,89551.0,89541.0,0.22336]
[1731809576059,0.111668,89551.0,89543.0,0.111677]
[1731809576280,0.112668,89551.0,89550.0,0.001855]
[1731809576510,0.112668,89551.0,89550.0,0.114524]
[1731809576511,0.001,89551.0,89550.0,0.114524]
[1731809576769,0.16712068,89563.0,89550.0,0.000855]
[1731809577000,0.16712068,89563.0,89550.0,0.008855]
[1731809577221,0.014,89551.0,89550.0,0.121524]
[1731809577447,0.0752,89567.0,89550.0,0.121524]
[1731809577448,0.0752,89567.0,89550.0,0.008855]
[1731809577670,0.0752,89567.0,89559.0,0.223315]
[1731809577900,0.0752,89567.0,89566.0,0.111649]
[1731809579488,0.03245958,89595.0,89570.0,0.111644]
[1731809579723,0.16712068,89591.0,89570.0,0.22070655]
[1731809579962,0.16712068,89591.0,89570.0,0.32570655]
[1731809580186,0.16712068,89591.0,89570.0,0.33070655]
[1731809580462,1e-06,89571.0,89570.0,0.33070655]
[1731809580945,1e-06,89571.0,89570.0,0.35870655]
[1731809581629,4e-07,89571.0,89570.0,0.36770655]
[1731809582188,0.16712068,89591.0,89590.0,0.218619]
[1731809582436,0.16712068,89600.0,89599.0,0.216608]
[1731809582678,0.16712068,89613.0,89612.0,0.113592]
[1731809582926,0.16712068,89613.0,89612.0,0.22065455]
[1731809583188,0.0017092,89629.0,89628.0,0.111572]
[1731809583426,0.0017092,89629.0,89628.0,0.113572]
[1731809583654,0.0017092,89629.0,89628.0,0.218572]
[1731809583894,0.0017092,89629.0,89628.0,0.32563455]
[1731809584380,0.0017092,89629.0,89628.0,0.33263455]
[1731809584610,0.0017092,89629.0,89628.0,0.33063455]
[1731809585054,0.0017092,89629.0,89628.0,0.33263455]
[1731809585296,0.0600538,89652.0,89651.0,0.111543]
[1731809586227,0.0600538,89652.0,89649.0,0.111545]
[1731809586455,0.0600538,89652.0,89630.0,0.16712068]
[1731809586461,0.0600538,89652.0,89631.0,0.211568]
[1731809586688,0.0600538,89652.0,89630.0,0.16712068]
[1731809586689,0.111554,89643.0,89640.0,0.16712068]
[1731809586927,0.11155,89646.0,89640.0,0.16712068]
[1731809587171,0.11155,89646.0,89616.0,0.005]
[1731809587172,0.1815958,89652.0,89651.0,0.005]
[1731809587423,0.1815958,89652.0,89596.0,0.17212068]
[1731809587424,0.005,89638.0,89627.0,0.16712068]
[1731809587655,0.11656,89638.0,89637.0,0.16712068]
[1731809587885,0.228121,89638.0,89627.0,0.16712068]
[1731809588168,0.223108,89643.0,89635.0,0.111563]
[1731809588169,0.0454,89643.0,89635.0,0.111563]
[1731809588412,0.0454,89643.0,89642.0,0.111554]
[1731809588656,0.0758,89646.0,89627.0,0.16712068]
[1731809588657,0.0758,89646.0,89645.0,0.111551]
[1731809588882,0.0454,89660.0,89658.0,0.111534]
[1731809589108,0.00718377,89659.0,89658.0,0.111534]
[1731809589583,0.001711,89659.0,89658.0,0.111534]
[1731809590531,0.001711,89659.0,89658.0,0.116534]
[1731809590773,0.001711,89659.0,89658.0,0.22759655]
[1731809591030,0.001711,89659.0,89658.0,0.22559655]
[1731809591264,0.001711,89659.0,89658.0,0.23459655]
[1731809591751,0.001711,89659.0,89658.0,0.22759655]
[1731809592035,0.001711,89659.0,89658.0,0.22959655]
[1731809592266,0.001711,89659.0,89658.0,0.23459655]
[1731809592506,0.001711,89659.0,89658.0,0.22759655]
[1731809592746,0.001711,89659.0,89658.0,0.23259655]
[1731809592978,0.001711,89659.0,89658.0,0.23459655]
[1731809593703,0.001711,89659.0,89658.0,0.23259655]
[1731809594195,0.001711,89659.0,89658.0,0.23482696]
[1731809594903,0.001711,89659.0,89658.0,0.23259655]
[1731809595144,0.001711,89659.0,89658.0,0.123534]
[1731809596093,0.001711,89659.0,89658.0,0.23259655]
[1731809596322,0.001711,89659.0,89658.0,0.23482708]
[1731809596574,0.001711,89659.0,89658.0,0.23459655]
[1731809597307,0.001711,89659.0,89658.0,0.012]
[1731809597554,0.077511,89659.0,89658.0,0.012]
[1731809597807,0.08361104,89659.0,89658.0,0.005]
[1731809598032,0.08361104,89659.0,89637.0,0.39024168]
[1731809598289,0.19514404,89659.0,89658.0,0.007]
[1731809598531,0.19514404,89659.0,89658.0,0.011]
[1731809598836,0.19514404,89659.0,89638.0,0.223119]
[1731809598837,0.08361104,89659.0,89646.0,0.16712068]
[1731809599036,0.08361104,89659.0,89658.0,0.007]
[1731809599037,0.19514404,89659.0,89658.0,0.007]
[1731809599278,0.19514404,89659.0,89658.0,0.011]
[1731809599507,0.19514404,89659.0,89658.0,0.007]
[1731809599508,0.19014404,89659.0,89658.0,0.007]
[1731809599750,0.19014404,89659.0,89658.0,0.011]
[1731809600237,0.19014404,89659.0,89658.0,0.004]
[1731809600238,0.22720659,89659.0,89658.0,0.004]
[1731809600504,0.23094551,89659.0,89658.0,0.004]
[1731809600761,0.00534996,89659.0,89658.0,0.011]
[1731809601049,0.00534996,89659.0,89658.0,0.004]
[1731809601550,0.00534996,89659.0,89658.0,0.005]
[1731809601784,0.00534996,89659.0,89658.0,0.116534]
[1731809601999,0.001711,89661.0,89660.0,0.113532]
[1731809602465,0.001711,89661.0,89660.0,0.22059455]
[1731809602741,0.001711,89661.0,89660.0,0.32759455]
[1731809603200,0.001711,89661.0,89660.0,0.33605355]
[1731809603473,0.001711,89661.0,89660.0,0.34105355]
[1731809603725,0.001711,89661.0,89660.0,0.22059455]
[1731809604020,0.001711,89661.0,89660.0,0.23159455]
[1731809604243,0.001711,89661.0,89660.0,0.22759455]
[1731809604517,0.001711,89661.0,89660.0,0.22059455]
[1731809604985,0.001711,89661.0,89660.0,0.007]
[1731809605229,0.001711,89661.0,89660.0,0.22259455]
[1731809605483,0.001711,89661.0,89660.0,0.23659455]
[1731809605738,0.001711,89661.0,89660.0,0.23859455]
[1731809605966,0.001711,89661.0,89660.0,0.23459455]
[1731809606196,0.001711,89661.0,89660.0,0.33659455]
[1731809606454,0.001711,89661.0,89660.0,0.22759455]
[1731809606678,0.001711,89661.0,89660.0,0.011]
[1731809606944,0.001711,89661.0,89643.0,0.005]
[1731809607219,0.001711,89661.0,89643.0,0.10906255]
[1731809607482,0.113242,89661.0,89660.0,0.007]
[1731809607939,0.113242,89661.0,89646.0,0.16712068]
[1731809607940,0.223064,89660.0,89646.0,0.16712068]
[1731809608227,0.001711,89661.0,89643.0,0.007]
[1731809608228,0.111552,89644.0,89643.0,0.007]
[1731809608719,0.111552,89644.0,89631.0,0.111568]
[1731809608720,0.127,89641.0,89627.0,0.16712068]
[1731809608983,0.111572,89628.0,89627.0,0.16712068]
[1731809609194,0.132,89641.0,89627.0,0.16712068]
[1731809609195,0.223124,89636.0,89627.0,0.16712068]
[1731809609454,0.02021694,89635.0,89618.0,0.16712068]
[1731809609711,0.02021694,89634.0,89627.0,0.16712068]
[1731809609944,0.02021694,89640.0,89619.0,0.11129408]
[1731809610185,0.02021694,89639.0,89637.0,0.11156]
[1731809610412,0.139,89641.0,89634.0,0.223129]
[1731809610413,0.02021694,89638.0,89634.0,0.223129]
[1731809610638,0.223117,89639.0,89619.0,0.10906255]
[1731809610890,0.02021694,89640.0,89618.0,0.16712068]
[1731809610891,0.111583,89619.0,89618.0,0.007]
[1731809611353,0.111583,89619.0,89609.0,0.16712068]
[1731809611354,0.02027522,89619.0,89609.0,0.16712068]
[1731809611606,0.005,89632.0,89609.0,0.16712068]
[1731809611607,0.223122,89637.0,89623.0,0.111578]
[1731809611830,0.132,89641.0,89618.0,0.004]
[1731809611831,0.01688882,89619.0,89618.0,0.004]
[1731809612070,0.05271625,89619.0,89618.0,0.22064655]
[1731809612290,0.05271625,89619.0,89618.0,0.22464655]
[1731809612291,0.02027523,89619.0,89618.0,0.22464655]
[1731809612539,0.16712068,89640.0,89631.0,0.111568]
[1731809612540,0.03244591,89632.0,89631.0,0.111568]
[1731809612756,0.05272826,89632.0,89631.0,0.111568]
[1731809613419,0.05272826,89632.0,89624.0,0.16712068]
[1731809613420,0.0802,89641.0,89640.0,0.111557]
[1731809613702,0.05274007,89641.0,89635.0,0.002]
[1731809613960,0.05274007,89641.0,89632.0,0.1]
[1731809613961,0.01690387,89650.0,89637.0,0.1]
[1731809614259,0.16712068,89656.0,89655.0,0.002]
[1731809614446,0.19958562,89656.0,89655.0,0.22260055]
[1731809614698,0.001711,89661.0,89660.0,0.111532]
[1731809615176,0.0759,89676.0,89675.0,0.111513]
[1731809615387,0.0759,89676.0,89649.0,0.1]
[1731809615388,0.09619205,89676.0,89661.0,0.10906255]
[1731809615609,0.09619205,89676.0,89674.0,0.111515]
[1731809615610,0.02029205,89675.0,89674.0,0.111515]
[1731809616538,0.014,89676.0,89675.0,0.111513]
[1731809616774,0.0017106,89677.0,89676.0,0.111512]
[1731809617246,0.02200156,89677.0,89664.0,0.16712068]
[1731809617456,0.001,89675.0,89674.0,0.007]
[1731809617672,0.13280396,89675.0,89674.0,0.007]
[1731809617884,0.0017106,89677.0,89653.0,0.1]
[1731809618128,0.13280737,89675.0,89674.0,0.003]
[1731809618333,0.13280737,89675.0,89654.0,0.10906255]
[1731809618334,0.0473,89667.0,89666.0,0.16712068]
[1731809618603,0.02029437,89675.0,89666.0,0.16712068]
[1731809618604,0.001,89675.0,89674.0,0.005]
[1731809618828,0.02129974,89675.0,89674.0,0.22557755]
[1731809619033,0.0027106,89677.0,89674.0,0.22557755]
[1731809619034,0.0027106,89677.0,89676.0,0.111512]
[1731809619249,0.0027106,89677.0,89657.0,0.005]
[1731809619250,0.0167106,89677.0,89660.0,0.1]
[1731809619466,0.0017106,89677.0,89672.0,0.111516]
[1731809619735,0.0017106,89677.0,89660.0,0.1]
[1731809619736,0.0017106,89677.0,89656.0,0.323073]
[1731809619934,0.0017106,89677.0,89653.0,0.007]
[1731809619935,0.111539,89654.0,89653.0,0.007]
[1731809620224,0.005,89664.0,89653.0,0.007]
[1731809620225,0.22307,89658.0,89653.0,0.007]
[1731809620430,0.22307,89658.0,89624.0,0.16712068]
[1731809620431,0.02030037,89657.0,89634.0,0.223129]
[1731809620638,0.223077,89655.0,89642.0,0.111553]
[1731809620851,0.111542,89653.0,89634.0,0.557821]
[1731809621081,0.13184337,89652.0,89642.0,0.111554]
[1731809621300,0.02030037,89651.0,89624.0,0.16712068]
[1731809621529,0.02030037,89650.0,89634.0,0.107]
[1731809621764,0.02030037,89649.0,89634.0,0.107]
[1731809621992,0.02030037,89648.0,89643.0,0.111552]
[1731809622205,0.02030037,89647.0,89643.0,0.111552]
[1731809622437,0.02030037,89646.0,89643.0,0.111552]
[1731809622681,0.02030037,89645.0,89644.0,0.111552]
[1731809622881,0.02030037,89645.0,89634.0,0.007]
[1731809623148,0.17212068,89656.0,89643.0,0.003]
[1731809623149,0.18742105,89644.0,89643.0,0.003]
[1731809623346,0.02030037,89644.0,89643.0,0.114553]
[1731809623556,0.02030037,89644.0,89643.0,0.003]
[1731809623980,0.02030037,89644.0,89643.0,0.28167368]
[1731809624212,0.02030037,89644.0,89643.0,0.49073623]
[1731809624445,0.16712068,89674.0,89643.0,0.49073623]
[1731809624446,0.02028874,89651.0,89650.0,0.213544]
[1731809624678,0.02028874,89651.0,89650.0,0.32060655]
[1731809624891,0.16712068,89665.0,89664.0,0.111527]
[1731809625143,0.16712068,89665.0,89652.0,0.223082]
[1731809625144,0.16712068,89665.0,89659.0,0.223065]
[1731809625365,0.223074,89656.0,89643.0,0.01]
[1731809625613,0.02029549,89655.0,89647.0,0.16712068]
[1731809625843,0.0752,89656.0,89643.0,0.007]
[1731809625844,0.001,89651.0,89650.0,0.003]
[1731809626293,0.001,89651.0,89645.0,0.223102]
[1731809626294,0.02029549,89655.0,89647.0,0.223097]
[1731809626560,0.0475,89675.0,89648.0,0.10906255]
[1731809626561,0.0752,89669.0,89648.0,0.10906255]
[1731809626806,0.02029549,89668.0,89654.0,0.16712068]
[1731809627055,0.0752,89669.0,89664.0,0.007]
[1731809627056,0.16712068,89665.0,89664.0,0.007]
[1731809627298,0.0752,89669.0,89664.0,0.007]
[1731809627521,0.0752,89669.0,89645.0,0.1]
[1731809627522,0.0752,89669.0,89668.0,0.111522]
[1731809627769,0.0752,89669.0,89656.0,0.16712068]
[1731809627770,0.0812,89669.0,89656.0,0.16712068]
[1731809628013,0.16712068,89663.0,89658.0,0.223069]
[1731809628265,0.0812,89669.0,89645.0,0.1]
[1731809628266,0.0752,89669.0,89664.0,0.004]
[1731809628505,0.0752,89669.0,89662.0,0.111528]
[1731809628506,0.0022824,89665.0,89662.0,0.111528]
[1731809628779,0.0022824,89665.0,89664.0,0.112527]
[1731809629929,0.0022824,89665.0,89664.0,0.22058955]
[1731809630163,0.12496908,89681.0,89664.0,0.10906255]
[1731809630393,0.0752,89683.0,89666.0,0.16712068]
[1731809630606,0.16712068,89681.0,89667.0,0.10906255]
[1731809630816,0.16712068,89681.0,89664.0,0.001]
[1731809630817,0.16712068,89681.0,89668.0,0.1]
[1731809631052,0.16712068,89681.0,89664.0,0.224054]
[1731809631053,0.223015,89680.0,89664.0,0.001]
[1731809631281,0.111519,89671.0,89664.0,0.001]
[1731809631504,0.111526,89665.0,89664.0,0.005]
[1731809631730,0.298222,89677.0,89664.0,0.005]
[1731809631731,0.005,89673.0,89664.0,0.005]
[1731809631949,0.111525,89666.0,89664.0,0.005]
[1731809632173,0.001,89665.0,89664.0,0.007]
[1731809632422,0.112526,89665.0,89664.0,0.007]
[1731809632623,0.161726,89665.0,89664.0,0.007]
[1731809633071,0.28078855,89665.0,89664.0,0.007]
[1731809633309,0.005,89657.0,89644.0,0.16712068]
[1731809633580,0.111538,89655.0,89654.0,0.16712068]
[1731809633785,0.005,89653.0,89635.0,0.16712068]
[1731809633994,0.02029549,89652.0,89645.0,0.16712068]
[1731809634228,0.10906255,89653.0,89635.0,0.16712068]
[1731809634229,0.111546,89649.0,89635.0,0.27868268]
[1731809634435,0.10906255,89653.0,89635.0,0.27868268]
[1731809634436,0.02029549,89650.0,89635.0,0.16712068]
[1731809634651,0.02029549,89651.0,89644.0,0.001]
[1731809634876,0.005,89652.0,89644.0,0.001]
[1731809634877,0.02529549,89652.0,89644.0,0.001]
[1731809635146,0.02529549,89652.0,89635.0,0.16712068]
[1731809635360,0.001,89649.0,89637.0,0.11156]
[1731809635645,0.001,89649.0,89635.0,0.007]
[1731809635877,0.111549,89647.0,89635.0,0.007]
[1731809636081,0.111549,89647.0,89644.0,0.005]
[1731809636311,0.111551,89645.0,89644.0,0.005]
[1731809636956,0.111551,89645.0,89644.0,0.011]
[1731809637185,0.11406255,89646.0,89644.0,0.006]
[1731809637430,0.11406255,89646.0,89624.0,0.16712068]
[1731809637644,0.111556,89641.0,89637.0,0.005]
[1731809638161,0.224102,89645.0,89625.0,0.111575]
[1731809638162,0.111558,89640.0,89625.0,0.111575]
[1731809638387,0.0492,89638.0,89624.0,0.16712068]
[1731809638597,0.223125,89636.0,89624.0,0.16712068]
[1731809638808,0.223127,89635.0,89624.0,0.16712068]
[1731809639032,0.0492,89638.0,89624.0,0.16712068]
[1731809639247,0.0492,89638.0,89625.0,0.111575]
[1731809639566,0.0492,89638.0,89623.0,0.111577]
[1731809639567,0.16076,89638.0,89623.0,0.111577]
[1731809639749,0.16076,89638.0,89622.0,0.223158]
[1731809639750,0.0492,89638.0,89621.0,0.11158]
[1731809640047,0.0492,89638.0,89602.0,0.223208]
[1731809640048,0.01,89628.0,89602.0,0.223208]
[1731809640242,0.01,89628.0,89617.0,0.16712068]
[1731809640451,0.01,89628.0,89606.0,0.223196]
[1731809640452,0.111576,89625.0,89610.0,0.111594]
[1731809640707,0.223143,89629.0,89575.0,0.09981509]
[1731809640708,0.005,89613.0,89575.0,0.09981509]
[1731809640919,0.005,89613.0,89570.0,0.00171]
[1731809640920,0.01,89598.0,89597.0,0.16712068]
[1731809641200,0.01,89598.0,89570.0,0.00171]
[1731809641201,0.111636,89577.0,89572.0,0.16712068]
[1731809641458,0.005,89589.0,89572.0,0.16712068]
[1731809641667,0.22032633,89598.0,89570.0,0.00171]
[1731809641668,0.29152068,89588.0,89570.0,0.00171]
[1731809641937,0.40558323,89588.0,89570.0,0.00171]
[1731809642159,0.111635,89577.0,89570.0,0.00171]
[1731809642447,0.111635,89578.0,89570.0,0.00171]
[1731809642682,0.02798601,89576.0,89572.0,0.005]
[1731809642889,0.11406255,89581.0,89572.0,0.005]
[1731809643413,0.005,89587.0,89572.0,0.005]
[1731809643414,0.22569455,89580.0,89572.0,0.005]
[1731809643636,0.11164,89573.0,89572.0,0.005]
[1731809643854,0.228271,89577.0,89572.0,0.005]
[1731809643855,0.111638,89575.0,89572.0,0.005]
[1731809644141,0.111638,89575.0,89570.0,0.00171]
[1731809644142,0.111643,89571.0,89570.0,0.00171]
[1731809644334,0.111643,89571.0,89570.0,0.00271]
[1731809644549,0.111643,89571.0,89570.0,0.00171]
[1731809645221,0.014,89573.0,89570.0,0.00171]
[1731809645426,0.014,89571.0,89570.0,0.00271]
[1731809646159,0.014,89571.0,89570.0,0.114354]
[1731809646637,0.028,89571.0,89570.0,0.32441655]
[1731809646896,0.028,89571.0,89570.0,0.00371]
[1731809647156,0.014,89571.0,89570.0,0.00271]
[1731809647348,0.014,89571.0,89570.0,0.00371]
[1731809647349,0.028,89571.0,89570.0,0.00371]
[1731809647605,0.014,89571.0,89570.0,0.00271]
[1731809647827,0.014,89573.0,89570.0,0.00271]
[1731809648062,0.111632,89580.0,89570.0,0.00171]
[1731809648275,0.16712068,89578.0,89570.0,0.00171]
[1731809648536,0.014,89571.0,89570.0,0.00271]
[1731809648741,0.001,89571.0,89570.0,0.00771]
[1731809648982,0.001,89571.0,89570.0,0.00871]
[1731809649414,0.001,89571.0,89570.0,0.00771]
[1731809649886,0.001,89571.0,89570.0,0.119354]
[1731809650151,0.014,89573.0,89572.0,0.211642]
[1731809650358,0.014,89573.0,89572.0,0.32070455]
[1731809651069,0.01162322,89602.0,89596.0,0.005]
[1731809651275,0.01162322,89602.0,89601.0,0.213605]
[1731809651495,0.16712068,89609.0,89608.0,0.211597]
[1731809651911,0.16712068,89620.0,89619.0,0.111583]
[1731809652353,0.16712068,89629.0,89628.0,0.111572]
[1731809652563,0.16712068,89629.0,89626.0,0.111574]
[1731809652786,0.16712068,89629.0,89616.0,0.10906255]
[1731809652996,0.16712068,89638.0,89616.0,0.10906255]
[1731809653256,0.1787439,89643.0,89616.0,0.10906255]
[1731809653497,0.16712068,89634.0,89633.0,0.111566]
[1731809653734,0.1787439,89643.0,89616.0,0.10906255]
[1731809653987,0.1787439,89643.0,89638.0,0.111559]
[1731809654230,0.005,89641.0,89617.0,0.1]
[1731809654431,0.28018323,89643.0,89622.0,0.16712068]
[1731809654651,0.16712068,89641.0,89632.0,0.111566]
[1731809654878,0.16712068,89641.0,89623.0,0.111578]
[1731809655099,0.16712068,89641.0,89638.0,0.001]
[1731809655326,0.004,89643.0,89638.0,0.001]
[1731809655797,0.111558,89639.0,89638.0,0.001]
[1731809656281,0.01,89623.0,89622.0,0.001]
[1731809656501,0.35364055,89623.0,89622.0,0.001]
[1731809656722,0.35364055,89623.0,89593.0,0.16712068]
[1731809656723,0.005,89613.0,89602.0,0.27872468]
[1731809656929,0.005,89613.0,89604.0,0.111601]
[1731809657145,0.123,89623.0,89602.0,0.16712068]
[1731809657146,0.005,89628.0,89602.0,0.16712068]
[1731809657362,0.16712068,89625.0,89603.0,0.16712068]
[1731809657577,0.001,89623.0,89622.0,0.013]
[1731809658046,0.1,89631.0,89615.0,0.223176]
[1731809658312,0.1,89631.0,89603.0,0.27618323]
[1731809658313,0.16712068,89625.0,89612.0,0.007]
[1731809658511,0.111585,89618.0,89603.0,0.16712068]
[1731809658802,0.111584,89619.0,89605.0,0.1116]
[1731809659062,0.01,89623.0,89602.0,0.001]
[1731809659063,0.111592,89613.0,89602.0,0.001]
[1731809659304,0.16712068,89621.0,89603.0,0.223206]
[1731809659305,0.111582,89620.0,89603.0,0.223206]
[1731809659559,0.111582,89620.0,89607.0,0.111597]
[1731809660029,0.002,89623.0,89615.0,0.111588]
[1731809660240,0.002,89623.0,89595.0,0.00223199]
[1731809660241,0.09212068,89625.0,89619.0,0.111582]
[1731809660481,0.09212068,89625.0,89603.0,0.009]
[1731809660730,0.323103,89645.0,89603.0,0.009]
[1731809660731,0.001,89620.0,89619.0,0.111583]
[1731809660942,0.001,89620.0,89604.0,0.10906255]
[1731809661184,0.16712068,89624.0,89607.0,0.120597]
[1731809661471,0.223157,89623.0,89601.0,0.22321]
[1731809661739,0.001,89625.0,89612.0,0.223184]
[1731809661942,0.001,89625.0,89605.0,0.223201]
[1731809661943,0.16712068,89623.0,89605.0,0.223201]
[1731809662157,0.16712068,89623.0,89604.0,0.223204]
[1731809662371,0.001,89625.0,89606.0,0.10906255]
[1731809662632,0.16712068,89623.0,89620.0,0.223162]
[1731809662834,0.16712068,89623.0,89609.0,0.005]
[1731809662835,0.16712068,89623.0,89622.0,0.111579]
[1731809663051,0.16712068,89633.0,89632.0,0.111567]
[1731809663295,0.16712068,89633.0,89610.0,0.10906255]
[1731809663296,0.16712068,89633.0,89611.0,0.1]
[1731809663526,0.005,89625.0,89603.0,0.223206]
[1731809664006,0.002,89623.0,89620.0,0.013]
[1731809664008,0.11158,89621.0,89620.0,0.013]
[1731809664299,0.22064255,89621.0,89620.0,0.009]
[1731809664573,0.22564255,89621.0,89620.0,0.009]
[1731809664827,0.22564255,89621.0,89603.0,0.16712068]
[1731809664828,0.005,89618.0,89603.0,0.16712068]
[1731809665176,0.02020896,89622.0,89604.0,0.16712068]
[1731809665177,0.005,89610.0,89604.0,0.16712068]
[1731809665401,0.005,89606.0,89604.0,0.16712068]
[1731809665636,0.1,89616.0,89594.0,0.223227]
[1731809665637,0.223174,89616.0,89594.0,0.223227]
[1731809665889,0.111598,89608.0,89594.0,0.111614]
[1731809666139,0.111598,89608.0,89583.0,0.16712068]
[1731809666140,0.02521671,89618.0,89596.0,0.223222]
[1731809666400,0.16712068,89611.0,89603.0,0.111602]
[1731809666621,0.16712068,89611.0,89591.0,0.111618]
[1731809666843,0.16712068,89611.0,89583.0,0.16712068]
[1731809666844,0.0008557,89616.0,89609.0,0.111595]
[1731809667093,0.0008557,89616.0,89592.0,0.10906255]
[1731809667094,0.005,89608.0,89594.0,0.001]
[1731809667330,0.011,89608.0,89598.0,0.111608]
[1731809667602,0.011,89608.0,89597.0,0.223221]
[1731809667824,0.011,89608.0,89594.0,0.33329055]
[1731809667825,0.12006255,89608.0,89603.0,0.001]
[1731809668076,0.10906255,89608.0,89593.0,0.111614]
[1731809668344,0.10906255,89608.0,89593.0,0.111615]
[1731809668598,0.10906255,89608.0,89592.0,0.16712068]
[1731809668815,0.16712068,89610.0,89585.0,0.223251]
[1731809669093,0.02021671,89615.0,89592.0,0.16712068]
[1731809669328,0.0208557,89616.0,89615.0,0.111588]
[1731809669584,0.0148557,89616.0,89615.0,0.111588]
[1731809669809,0.0008557,89616.0,89615.0,0.111588]
[1731809670060,0.0008557,89616.0,89613.0,0.11159]
[1731809670305,0.0008557,89616.0,89594.0,0.005]
[1731809670306,0.0008557,89616.0,89596.0,0.223224]
[1731809670572,0.006,89615.0,89612.0,0.111592]
[1731809670829,0.006,89615.0,89592.0,0.001]
[1731809670830,0.16712068,89613.0,89592.0,0.001]
[1731809671098,0.16712068,89613.0,89583.0,0.16712068]
[1731809671099,0.005,89611.0,89593.0,0.16712068]
[1731809671323,0.111607,89600.0,89593.0,0.16712068]
[1731809671618,0.16676255,89610.0,89593.0,0.16712068]
[1731809671841,0.02023701,89608.0,89586.0,0.223248]
[1731809672068,0.10906255,89607.0,89595.0,0.111612]
[1731809672286,0.12929956,89607.0,89583.0,0.16712068]
[1731809672527,0.02023701,89606.0,89583.0,0.16712068]
[1731809672778,0.02023701,89605.0,89592.0,0.16712068]
[1731809673047,0.02023701,89605.0,89583.0,0.16712068]
[1731809673048,0.02023701,89609.0,89593.0,0.33229355]
[1731809673306,0.16712068,89613.0,89612.0,0.111592]
[1731809673586,0.16712068,89613.0,89593.0,0.33229355]
[1731809673587,0.16712068,89604.0,89593.0,0.10906255]
[1731809673827,0.16712068,89624.0,89598.0,0.16712068]
[1731809673828,0.013,89607.0,89598.0,0.16712068]
[1731809674075,0.006,89606.0,89605.0,0.1136]
[1731809674330,0.013,89607.0,89605.0,0.1136]
[1731809674331,0.004,89607.0,89606.0,0.216599]
[1731809674545,0.16712068,89623.0,89615.0,0.111588]
[1731809674772,0.16712068,89623.0,89615.0,0.22065055]
[1731809675208,0.09097638,89623.0,89622.0,0.111579]
[1731809675428,0.09097638,89623.0,89618.0,0.111583]
[1731809675684,0.03241215,89630.0,89597.0,0.005]
[1731809675901,0.16712068,89624.0,89601.0,0.111605]
[1731809676128,0.246161,89621.0,89592.0,0.39035368]
[1731809676348,0.11159,89614.0,89602.0,0.16712068]
[1731809676600,0.02027568,89613.0,89598.0,0.008]
[1731809676824,0.02027568,89613.0,89593.0,0.111615]